Workbook

Sheet Pricing Schedule
A1: C2.2 Pricing Schedule (Incorporating SBD3.3)
A2: Item No. | B2: Description | C2: Unit | D2: Quantity | E2: Rate | F2: Amount
A3: C3.2 | B3: SITE LABORATORY
A4: C3.2.01 | B4: Class A laboratory type:
B5: (a) Soils laboratory (complete):
B6: (i) Establishment (including supply of equipment) | C6: L/Sum | D6: 1 | F6: =E6*D6 -> 0
B7: (ii) Operations | C7: month | D7: 36 | F7: =E7*D7 -> 0
B8: (b) Seal laboratory (complete):
B9: (i) Establishment (including supply of equipment) | C9: L/Sum | D9: 1 | F9: 0
B10: (ii) Operations | C10: month | D10: 33 | F10: 0
A11: C3.2.02 | B11: Class B laboratory type:
B12: (a) Concrete laboratory (complete):
B13: (i) Establishment (including supply of equipment) | C13: L/Sum | D13: 1 | F13: 0
B14: (ii) Operations | C14: month | D14: 23 | F14: 0
A15: C3.2.03 | B15: Class C laboratory type:
B16: (a) Asphalt laboratory (complete):
B17: (i) Establishment (including supply of equipment) | C17: L/Sum | D17: 1 | F17: 0
B18: (ii) Operations | C18: month | D18: 20 | F18: 0
A19: C3.2.04 | B19: Computers, printers and software:
B20: (a) Establishment (including supply of equipment) | C20: L/Sum | D20: 1 | F20: 0
B21: (b) Operations | C21: month | D21: 36 | F21: 0
A22: C3.2.05 | B22: Laboratory administration and consumables:
B23: (a) Operations | C23: month | D23: 36 | F23: 0
B24: (b) ITIS data capture | C24: month | D24: 36 | F24: 0
B25: (c) SARDS data capture | C25: month | D25: 36 | F25: 0
A26: TOTAL FOR C3.2 SITE LABORATORY CARRIED FORWARD TO SUMMARY PAGE | F26: =SUM(F6:F25) -> 0
A27: C3.3 | B27: LABORATORY PERSONNEL
A28: C3.3.01 | B28: Supply of site laboratory personnel:
B29: (a) Senior Site Laboratory Manager
B30: (i) Establishment | C30: L/Sum | D30: 1 | F30: =E30*D30 -> 0
B31: (ii) Operations | C31: month | D31: 36 | F31: =E31*D31 -> 0
B32: (b) Site Laboratory Manager:
B33: (i) Establishment | C33: L/Sum | D33: 1 | F33: 0
B34: (ii) Operations | C34: month | D34: 36 | F34: 0
B35: (c) Assistant Trainee Laboratory Manager
B36: (i) Establishment | C36: L/Sum | D36: 1 | F36: 0
B37: (ii) Operations | C37: Prov Sum | D37: 1 | E37: 900,000.00 | F37: 900,000.00
B38: (iii) Handling costs in respect of Sub-item C3.3.01(c)(ii) | C38: % | D38: =F37 -> 900,000.00 | F38: 0
B39: (d) Senior Materials Tester (Field):
B40: (i) Establishment:
B41: (1) SMT Soils (Field 1) | C41: L/Sum | D41: 1 | F41: 0
B42: (2) SMT Seals (Field 1) | C42: L/Sum | D42: 1 | F42: 0
B43: (3) SMT Concrete (Field 1) | C43: L/Sum | D43: 1 | F43: 0
B44: (4) SMT Asphalt (Field 1) | C44: L/Sum | D44: 1 | F44: 0
B45: (ii) Operations (densities, cubes, etc):
B46: (1) SMT Soils (Field 1) | C46: month | D46: 36 | F46: 0
B47: (2) SMT Seals (Field 1) | C47: month | D47: 33 | F47: 0
B48: (3) SMT Concrete (Field 1) | C48: month | D48: 23 | F48: 0
B49: (4) SMT Asphalt (Field 1) | C49: month | D49: 20 | F49: 0
B50: (e) Senior Materials Tester (Laboratory):
B51: (i) Establishment:
B52: (1) SMT Soils (Lab 1) | C52: L/Sum | D52: 1 | F52: 0
B53: (2) SMT Soils (Lab 2) | C53: L/Sum | D53: 1 | F53: 0
B54: (3) SMT Seals (Lab 1) | C54: L/Sum | D54: 1 | F54: 0
B55: (4) SMT Seals (Lab 2) | C55: L/Sum | D55: 1 | F55: 0
B56: (5) SMT Concrete (Lab 1) | C56: L/Sum | D56: 1 | F56: 0
B57: (6) SMT Asphalt (Lab 1) | C57: L/Sum | D57: 1 | F57: 0
B58: (ii) Operations:
B59: (1) SMT Soils (Lab 1) | C59: month | D59: 36 | F59: 0
B60: (2) SMT Soils (Lab 2) | C60: month | D60: 36 | F60: 0
B61: (3) SMT Seals (Lab 1) | C61: month | D61: 33 | F61: 0
B62: (4) SMT Seals (Lab 2) | C62: month | D62: 33 | F62: 0
B63: (5) SMT Concrete (Lab 1) | C63: month | D63: 23 | F63: 0
B64: (6) SMT Asphalt (Lab 1) | C64: month | D64: 20 | F64: 0
B65: (f) Materials Tester (Field):
B66: (i) Establishment:
B67: (1) MT Soils (Field 1) | C67: L/Sum | D67: 1 | F67: 0
B68: (2) MT Seals (Field 1) | C68: L/Sum | D68: 1 | F68: 0
B69: (3) MT Concrete (Field 1) | C69: L/Sum | D69: 1 | F69: 0
B70: (4) MT Asphalt (Field 1) | C70: L/Sum | D70: 1 | F70: 0
A71: SUB-TOTAL CARRIED FORWARD TO NEXT PAGE | F71: =SUM(F30:F70) -> 900,000.00
A72: SUB-TOTAL BROUGHT FORWARD FROM PREVIOUS PAGE | F72: =F71 -> 900,000.00
B73: (ii) Operations (densities, cubes, etc):
B74: (1) MT Soils (Field 1) | C74: month | D74: 36 | F74: 0
B75: (2) MT Seals (Field 1) | C75: month | D75: 33 | F75: 0
B76: (3) MT Concrete (Field 1) | C76: month | D76: 23 | F76: 0
B77: (4) MT Asphalt (Field 1) | C77: month | D77: 20 | F77: 0
B78: (g) Materials Tester (Laboratory):
B79: (i) Establishment:
B80: (1) MT Soils (Lab 1) | C80: L/Sum | D80: 1 | F80: 0
B81: (2) MT Soils (Lab 2) | C81: L/Sum | D81: 1 | F81: 0
B82: (3) MT Soils (Lab 3) | C82: L/Sum | D82: 1 | F82: 0
B83: (4) MT Soils (Lab 4) | C83: L/Sum | D83: 1 | F83: 0
B84: (5) MT Seals (Lab 1) | C84: L/Sum | D84: 1 | F84: 0
B85: (6) MT Seals (Lab 2) | C85: L/Sum | D85: 1 | F85: 0
B86: (7) MT Concrete (Lab 1) | C86: L/Sum | D86: 1 | F86: 0
B87: (8) MT Asphalt (Lab 1) | C87: L/Sum | D87: 1 | F87: 0
B88: (ii) Operations:
B89: (1) MT Soils (Lab 1) | C89: month | D89: 36 | F89: 0
B90: (2) MT Soils (Lab 2) | C90: month | D90: 36 | F90: 0
B91: (3) MT Soils (Lab 3) | C91: month | D91: 36 | F91: 0
B92: (4) MT Soils (Lab 4) | C92: month | D92: 36 | F92: 0
B93: (5) MT Seals (Lab 1) | C93: month | D93: 33 | F93: 0
B94: (6) MT Seals (Lab 2) | C94: month | D94: 33 | F94: 0
B95: (7) MT Concrete (Lab 1) | C95: month | D95: 23 | F95: =E95*D95 -> 0
B96: (8) MT Asphalt (Lab 1) | C96: month | D96: 20 | F96: 0
B97: (h) Assistant Materials Tester (Field):
B98: (i) Establishment:
B99: (1) AMT Soils (Field 1) | C99: L/Sum | D99: 1 | F99: 0
B100: (2) AMT Soils (Field 2) | C100: L/Sum | D100: 1 | F100: 0
B101: (3) AMT Seals (Field 1) | C101: L/Sum | D101: 1 | F101: 0
B102: (4) AMT Concrete (Field 1) | C102: L/Sum | D102: 1 | F102: 0
B103: (5) AMT Asphalt (Field 1) | C103: L/Sum | D103: 1 | F103: 0
B104: (ii) Operations (densities, cubes, etc):
B105: (1) AMT Soils (Field 1) | C105: month | D105: 36 | F105: 0
B106: (2) AMT Soils (Field 2) | C106: month | D106: 36 | F106: 0
B107: (3) AMT Seals (Field 1) | C107: month | D107: 33 | F107: 0
B108: (4) AMT Concrete (Field 1) | C108: month | D108: 23 | F108: 0
B109: (5) AMT Asphalt (Field 1) | C109: month | D109: 20 | F109: 0
B110: (i) Assistant Materials Tester (Laboratory):
B111: (i) Establishment:
B112: (1) AMT Soils (Lab 1) | C112: L/Sum | D112: 1 | F112: 0
B113: (2) AMT Soils (Lab 2) | C113: L/Sum | D113: 1 | F113: 0
B114: (3) AMT Soils (Lab 3) | C114: L/Sum | D114: 1 | F114: 0
B115: (4) AMT Soils (Lab 4) | C115: L/Sum | D115: 1 | F115: 0
B116: (5) AMT Soils (Lab 5) | C116: L/Sum | D116: 1 | F116: 0
B117: (6) AMT Soils (Lab 6) | C117: L/Sum | D117: 1 | F117: 0
A118: SUB-TOTAL CARRIED FORWARD TO NEXT PAGE | F118: =SUM(F72:F117) -> 900,000.00
A119: SUB-TOTAL BROUGHT FORWARD FROM PREVIOUS PAGE | F119: =F118 -> 900,000.00
B120: (7) AMT Seals (Lab 1) | C120: L/Sum | D120: 1 | F120: 0
B121: (8) AMT Seals (Lab 2) | C121: L/Sum | D121: 1 | F121: 0
B122: (9) AMT Seals (Lab 3) | C122: L/Sum | D122: 1 | F122: 0
B123: (10) AMT Seals (Lab 4) | C123: L/Sum | D123: 1 | F123: 0
B124: (11) AMT Seals (Lab 5) | C124: L/Sum | D124: 1 | F124: 0
B125: (12) AMT Concrete (Lab 1) | C125: L/Sum | D125: 1 | F125: 0
B126: (13) AMT Concrete (Lab 2) | C126: L/Sum | D126: 1 | F126: 0
B127: (14) AMT Asphalt (Lab 1) | C127: L/Sum | D127: 1 | F127: 0
B128: (15) AMT Asphalt (Lab 2) | C128: L/Sum | D128: 1 | F128: 0
B129: (ii) Operations:
B130: (1) AMT Soils (Lab 1) | C130: month | D130: 36 | F130: 0
B131: (2) AMT Soils (Lab 2) | C131: month | D131: 36 | F131: 0
B132: (3) AMT Soils (Lab 3) | C132: month | D132: 36 | F132: 0
B133: (4) AMT Soils (Lab 4) | C133: month | D133: 36 | F133: 0
B134: (5) AMT Soils (Lab 5) | C134: month | D134: 36 | F134: 0
B135: (6) AMT Soils (Lab 6) | C135: month | D135: 36 | F135: 0
B136: (7) AMT Seals (Lab 1) | C136: month | D136: 33 | F136: 0
B137: (8) AMT Seals (Lab 2) | C137: month | D137: 33 | F137: 0
B138: (9) AMT Seals (Lab 3) | C138: month | D138: 33 | F138: 0
B139: (10) AMT Seals (Lab 4) | C139: month | D139: 33 | F139: 0
B140: (11) AMT Seals (Lab 5) | C140: month | D140: 33 | F140: 0
B141: (12) AMT Concrete (Lab 1) | C141: month | D141: 23 | F141: 0
B142: (13) AMT Concrete (Lab 2) | C142: month | D142: 23 | F142: 0
B143: (14) AMT Asphalt (Lab 1) | C143: month | D143: 20 | F143: 0
B144: (15) AMT Asphalt (Lab 2) | C144: month | D144: 20 | F144: 0
B145: (j) Laboratory General Assistant | C145: month | D145: 36 | F145: 0
B146: (k) Data Capturer | C146: month | D146: 36 | F146: 0
A147: C3.3.02 | B147: Extra-over Sub-item C3.3.01 for overtime payments to laboratory personnel:
B148: (a) Senior Materials Testers:
B149: (i) SMT Field | C149: hr | D149: 2,400 | F149: 0
B150: (ii) SMT Lab | C150: hr | D150: 3,500 | F150: 0
B151: (b) Materials Testers:
B152: (i) MT Field | C152: hr | D152: 2,400 | F152: 0
B153: (ii) MT Lab | C153: hr | D153: 4,700 | F153: 0
B154: (c) Assistant Materials Testers:
B155: (iii) AMT Field | C155: hr | D155: 2,400 | F155: 0
B156: (iv) AMT Lab | C156: hr | D156: 8,700 | F156: 0
B157: (d) Laboratory General Assistant | C157: hr | D157: 600 | F157: 0
B158: (e) Data Capturer | C158: hr | D158: 600 | F158: =E158*D158 -> 0
A159: TOTAL FOR C3.3 LABORATORY PERSONNEL CARRIED FORWARD TO SUMMARY PAGE | F159: =SUM(F119:F158) -> 900,000.00
A160: C3.4 | B160: TRAINING
A161: C3.4.01 | B161: Training:
B162: (a) Engineering skills | C162: Prov Sum | D162: 1 | E162: 55,000.00 | F162: =E162*D162 -> 55,000.00
B163: (b) Development | C163: Prov Sum | D163: 1 | E163: 55,000.00 | F163: =E163*D163 -> 55,000.00
B164: (c) Safety | C164: Prov Sum | D164: 1 | E164: 55,000.00 | F164: 55,000.00
B165: (d) Training venue | C165: Prov Sum | D165: 1 | E165: 15,000.00 | F165: 15,000.00
B166: (e) Remuneration of workers undergoing training | C166: Prov Sum | D166: 1 | E166: 55,000.00 | F166: 55,000.00
B167: (f) Handling costs in respect of Sub-items C3.4.01(a), (b), (c), (d) and (e) | C167: % | D167: =SUM(F162:F166) -> 235,000.00 | F167: 0
A168: TOTAL FOR C3.4 TRAINING CARRIED FORWARD TO SUMMARY PAGE | F168: =SUM(F162:F167) -> 235,000.00
A169: C3.5 | B169: STANDARD OF TESTING
A170: C3.5.01 | B170: Quality assurance and audits of the Site Laboratory:
B171: (a) External inspections / audits | C171: Prov Sum | D171: 1 | E171: 100,000.00 | F171: =E171*D171 -> 100,000.00
B172: (b) Handling costs in respect of Sub-item C3.5.01(a) | C172: % | D172: =F171 -> 100,000.00 | F172: 0
B173: (c) Internal inspections / audits by SANAS accredited parent laboratory | C173: No | D173: 36 | F173: =E173*D173 -> 0
A174: TOTAL FOR C3.5 STANDARD OF TESTING CARRIED FORWARD TO SUMMARY PAGE | F174: =SUM(F171:F173) -> 100,000.00
A175: C3.6 | B175: PROVISION OF TRANSPORT AND HOUSING
A176: C3.6.01 | B176: Provision of transport for retrieving samples and all associated field work:
B177: (a) Travelling to perform sampling and field work | C177: Prov Sum | D177: 1 | E177: 1,500,000.00 | F177: =E177*D177 -> 1,500,000.00
B178: (b) Handling costs in respect of Sub-item C3.6.01(a) | C178: % | D178: =F177 -> 1,500,000.00 | F178: =E178*D178 -> 0
A179: C3.6.02 | B179: Accommodation for site laboratory managers and laboratory testing personnel: | F179: 0
B180: (a) Provision for accommodation | C180: Prov Sum | D180: 1 | E180: 4,700,000.00 | F180: =E180*D180 -> 4,700,000.00
B181: (b) Handling costs in respect of Sub-item C3.6.02(a) | C181: % | D181: =F180 -> 4,700,000.00 | F181: =E181*D181 -> 0
A182: TOTAL FOR C3.6 TRANSPORT AND HOUSING CARRIED FORWARD TO SUMMARY PAGE | F182: =SUM(F177:F181) -> 6,200,000.00
A183: C3.7 | B183: SPECIALISED EQUIPMENT AND OFFSITE TESTING
A184: C3.7.01 | B184: Specialised equipment (not provided for in the various laboratory types):
B185: (a) Walking profilometer:
B186: (i) Establishment (including supply of equipment) | C186: L/Sum | D186: 1 | F186: =E186*D186 -> 0
B187: (ii) Operations | C187: month | D187: 36 | F187: 0
B188: (b) Concrete cover meter: | F188: 0
B189: (i) Establishment (including supply of equipment) | C189: L/Sum | D189: 1 | F189: 0
B190: (ii) Operations | C190: month | D190: 23 | F190: 0
A191: C3.7.02 | B191: Off-site specialised testing: | F191: 0
B192: (a) Testing by an external SANAS accredited laboratory upon the instruction of the Employer’s representative | C192: Prov Sum | D192: 1 | E192: 250,000.00 | F192: 250,000.00
B193: (b) Handling costs in respect of Sub-item C3.7.02(a) | C193: % | D193: =F192 -> 250,000.00 | F193: 0
A194: C3.7.03 | B194: Off-site specialised testing: | F194: 0
B195: (d) Standard tests for bituminous seals: | F195: 0
B196: (i) ACV (Aggregate Crushing Value and 10% FACT (Fines Aggregate Crushing Test) values of coarse aggregate | C196: No | D196: 15 | F196: 0
B197: (ii) Polished stone value of aggregates | C197: No | D197: 15 | F197: 0
A198: TOTAL FOR C3.7 SPECIALISED EQUIPMENT AND OFFSITE TESTING CARRIED FORWARD TO SUMMARY PAGE | F198: =SUM(F186:F197) -> 250,000.00
A199: C3.8 | B199: OCCUPATIONAL HEALTH AND SAFETY REQUIREMENTS
A201: C3.8.01 | B201: Compliance with the Occupational Health and Safety Act (Act 85 of 1993) and Regulations, including the Construction Regulations (2014) | C201: month | D201: 36 | F201: =E201*D201 -> 0
... 1 more rows

Sheet Summary of Pricing Schedule
A1: C2.3 Summary of Pricing Schedule
A2: Section C3.2 | B2: SITE LABORATORY | C2: ='Pricing Schedule'!F26 -> 0
A3: Section C3.3 | B3: LABORATORY PERSONNEL | C3: ='Pricing Schedule'!F159 -> 900,000.00
A4: Section C3.4 | B4: TRAINING | C4: ='Pricing Schedule'!F168 -> 235,000.00
A5: Section C3.5 | B5: STANDARD OF TESTING | C5: ='Pricing Schedule'!F174 -> 100,000.00
A6: Section C3.6 | B6: PROVISION OF TRANSPORT AND HOUSING | C6: ='Pricing Schedule'!F182 -> 6,200,000.00
A7: Section C3.7 | B7: SPECIALISED EQUIPMENT AND OFFSITE TESTING | C7: ='Pricing Schedule'!F198 -> 250,000.00
A8: Section C3.8 | B8: OCCUPATIONAL HEALTH AND SAFETY REQUIREMENTS | C8: ='Pricing Schedule'!F203 -> 0
A9: SUB-TOTAL | C9: =SUM(C2:C8) -> 7685000
A10: 15% VALUE ADDED TAX | C10: =C9*15% -> 1152750
A11: TENDER AMOUNT CARRIED TO C1.1.1 FORM OF OFFER (INCORPORATING SBD7) | C11: =SUM(C9:C10) -> 8837750
